Cogmind - Beta 12 *** ADVENTURER MODE // 2023.04.25 @ 14:36:50 Player: SuDmit Result: Destroyed by G-47 Trooper with Particle Gun Performance ------------- Evolutions (0) 0 Regions Visited (1) 200 Robots Destroyed (18) 90 Value Destroyed (468) 468 Prototype IDs (2) 40 Alien Tech Used (0) 0 Bonus (32) 32 TOTAL SCORE: 830 Bonus ------- High Alert Combat Kills 32 Cogmind --------- Core Integrity 0/250 Matter 300/300 Energy 143/250 System Corruption 0% Temperature Cool (9) Movement Rolling (95) Ox1 Location -10/Materials Parts ------- > --- POWER (1) -------- Ion Engine > --- PROPULSION (2) --- Wheel > --- UTILITY (2) ------ Heat Sink Small Storage Unit > --- WEAPON (2) ------- Small Laser Light Assault Rifle > --- INVENTORY (8) ---- Ion Engine Hover Unit Sensor Array Signal Interpreter Seismic Detector Seismic Detector Peak State ------------ > --- POWER ------------ Ion Engine > --- PROPULSION ------- Wheel Compact Wheel > --- UTILITY ---------- Small Storage Unit Seismic Detector > --- WEAPON ----------- Medium Laser Light Assault Rifle > --- INVENTORY -------- Ion Engine Small Laser [Rating: 7] Favorites ----------- Power Ion Engine Engine Ion Engine Propulsion Wheel Wheel Wheel Utility Small Storage Unit Device Seismic Detector Storage Small Storage Unit Weapon Light Assault Rifle Energy Gun Medium Laser Ballistic Gun Light Assault Rifle Build | -11 -10 ------- Run | Jun Mat Slots Evolved . | . . Power . | . . Propulsion . | . . Utility . | . . Weapon . | . . Parts Attached 13 | 8 5 Power 2 | 1 1 Engine 2 | 1 1 Core . | . . Reactor . | . . Propulsion 2 | 2 . Treads . | . . Leg . | . . Wheel 2 | 2 . Hover . | . . Flight . | . . Utility 5 | 2 3 Device 4 | 1 3 Storage 1 | 1 . Processor . | . . Hackware . | . . Protection . | . . Artifact . | . . Weapon 4 | 3 1 Energy Gun 3 | 2 1 Energy Cannon . | . . Ballistic Gun 1 | 1 . Ballistic Cannon . | . . Launcher . | . . Special Weapon . | . . Impact Weapon . | . . Slashing Weapon . | . . Piercing Weapon . | . . Special Melee Weapon . | . . Unidentified Prototypes . | . . Parts Lost 3 | . 3 Power 1 | . 1 Propulsion 1 | . 1 Utility . | . . Weapon 1 | . 1 Highest Loss Streak 2 | . 2 To Critical Strikes . | . . Average Slot Usage (%) 92 | . 92 Engine 14 | . 14 Wheel 20 | . 20 Device 14 | . 14 Storage 14 | . 14 Energy Gun 14 | . 14 Ballistic Gun 14 | . 14 Naked Turns . | . . Heaviest Build 14 | 14 14 Greatest Support 26 | 26 26 Greatest Overweight (x) 1 | 1 1 Average Overweight (x) . | . . Largest Inventory Capacity 8 | 8 8 Average Capacity 7 | 7 8 Most Carried 8 | 3 8 Average Carried 3 | 1 4 Final Capacity 8 | 8 8 Final Carried 6 | 3 6 Class Distribution -------------------- 100% | Mutant Dominant Class ---------------- Mutant | -10/Materials Resources | -11 -10 ----------- Run | Jun Mat Matter Collected 378 | 228 150 Remotely . | . . Salvage Created 617 | 41 576 Parts 33 | 2 31 Haulers Intercepted . | . . Recyclers Shooed . | . . Parts Field Recycled . | . . Retrieved Matter . | . . Parts Self-Destructed . | . . Prevented . | . . Kills | -11 -10 ------- Run | Jun Mat Combat Hostiles Destroyed 15 | . 15 Guns 15 | . 15 Classes Destroyed 4 | 1 3 Tunneler 2 | 2 . Watcher 1 | . 1 Swarmer 3 | . 3 Grunt 12 | . 12 Best Kill Streak 7 | 2 7 Combat Bots Only 6 | . 6 Max Kills in Single Turn 1 | 1 1 Gunslinging . | . . Exploded . | . . Melee . | . . Uniques/NPCs Destroyed . | . . Combat | -11 -10 -------- Run | Jun Mat Damage Taken 608 | . 608 Core 251 | . 251 Absorbed by Shields . | . . Core Remaining (%) 100 | 100 . Volleys Fired 60 | 5 55 Largest 2 | 2 2 Hottest 70 | 70 70 Shots Fired 119 | 10 109 Gun 119 | 10 109 Cannon . | . . Launcher . | . . Special . | . . Kinetic 60 | 5 55 Thermal 59 | 5 54 Explosive . | . . Electromagnetic . | . . Robot Hit Streak 29 | 9 29 Robot Miss Streak 1 | . 1 Penetration Max . | . . Secondary Targets 3 | . 3 Max Gunslinging Chain 1 | . 1 Shots Hit Robots 104 | 9 95 Core Hits 33 | 2 31 Critical Kills . | . . Critical Parts Destroyed . | . . Critical Strikes 2 | . 2 Burn 2 | . 2 Melee Attacks . | . . Impact . | . . Slashing . | . . Piercing . | . . Sneak Attacks . | . . Combat Hostiles . | . . Follow-up Attacks . | . . Damage Inflicted 1051 | 91 960 Guns 1051 | 91 960 Cannons . | . . Explosions . | . . Melee . | . . Ramming . | . . Kinetic 446 | 42 404 Thermal 605 | 49 556 Explosive . | . . Electromagnetic . | . . Impact . | . . Slashing . | . . Piercing . | . . Highest Corruption . | . . Average Corruption . | . . Corruption Purged . | . . Corruption Blocked . | . . Overload Shots . | . . Overflow Damage . | . . Projectiles . | . . Explosions . | . . Melee . | . . Knockbacks . | . . Impact . | . . Kinetic . | . . Secondary . | . . Self-Inflicted Damage . | . . Shots . | . . Rammed . | . . Targets Rammed . | . . Kicked . | . . Crushed . | . . Highest Temperature 268 | 50 268 Average Temperature 101 | 25 108 Received Heat Transfer 384 | . 384 Siege Activations . | . . Robots Corrupted . | . . Combat Hostiles . | . . Parts Fried . | . . Impact Corruptions . | . . Robots Melted . | . . Combat Hostiles . | . . Parts Melted 1 | . 1 Heat Transferred 1901 | 148 1753 Parts Sabotaged . | . . Parts Stolen . | . . Parts Stripped . | . . Power Chain Reactions . | . . Missiles Intercepted . | . . Alert | -11 -10 ------- Run | Jun Mat Peak Influence 468 | 10 468 Initial 5 | . 5 Average 175 | 2 219 Maximum Alert Level 2 | . 2 Low Security (%) 59 | 100 48 Level 1 27 | . 34 Level 2 12 | . 16 Level 3 . | . . Level 4 . | . . Level 5 . | . . High Security . | . . Max Security . | . . Squads Dispatched 7 | . 7 Investigation 7 | . 7 Extermination . | . . Reinforcement . | . . Assault . | . . Garrison . | . . Intercept . | . . Searches Triggered . | . . Construction Impeded . | . . Haulers Reinforced . | . . Active Scanning Responses . | . . Cargo Convoy Interrupts . | . . Stealth | -11 -10 --------- Run | Jun Mat Distress Signals . | . . Communications Jammed . | . . Distress Signals . | . . Times Spotted 17 | . 17 Peak Tracking Total 5 | . 5 Tactical Retreats . | . . Traps | -11 -10 ------- Run | Jun Mat Traps Triggered . | . . Indirectly . | . . Trap Hack Attempts . | . . Triggered . | . . Disarmed . | . . Reprogrammed . | . . Reused . | . . Traps Extracted . | . . Installed . | . . Triggered . | . . Machines | -11 -10 ---------- Run | Jun Mat Machines Disabled . | . . Max in Single Turn . | . . Machines Repaired . | . . Machines Sabotaged . | . . Overloaded Fab Kills . | . . Hacking | -11 -10 --------- Run | Jun Mat Machines Accessed 9 | . 9 Terminals 7 | . 7 Fabricators . | . . Repair Stations . | . . Recycling Units 2 | . 2 Scanalyzers . | . . Garrison Access . | . . Total Hacks 27 | . 27 Successful 19 | . 19 Failed 8 | . 8 Catastrophic 1 | . 1 Database Lockouts . | . . Manual 25 | . 25 Terminals 24 | . 24 Fabricators . | . . Repair Stations . | . . Recycling Units 3 | . 3 Scanalyzers . | . . Garrison Access . | . . Terminal Hacks 6 | . 6 Robot Analysis 1 | . 1 Prototype ID Bank 1 | . 1 Branch Access Points 1 | . 1 Terminal Index 1 | . 1 Recycling Unit Index 1 | . 1 Dispatch Records 1 | . 1 Fabricator Hacks . | . . Repair Station Hacks . | . . Recycling Unit Hacks . | . . Scanalyzer . | . . Garrison Access Hacks . | . . Unauthorized Hacks 13 | . 13 Terminals 11 | . 11 Botnet 7 | . 7 Disrupt 1 | . 1 Search 3 | . 3 Fabricators . | . . Repair Stations . | . . Recycling Units 2 | . 2 Tunnel 2 | . 2 Scanalyzers . | . . Garrison Access . | . . Data Cores Recovered . | . . Used . | . . Hacking Detections 8 | . 8 Full Trace Events 2 | . 2 Feedback Events . | . . Feedback Blocked . | . . Robot Schematics Acquired . | . . Robots Built . | . . Authchips . | . . Time . | . . Total Robot Build Rating . | . . Part Schematics Acquired . | . . Parts Built . | . . Authchips . | . . Time . | . . Total Part Build Rating . | . . Parts Repaired . | . . Time . | . . Parts Recycled . | . . Recycled Matter . | . . Retrieved Matter . | . . Retrieved Components . | . . Parts Scanalyzed . | . . Part Schematics Acquired . | . . Parts Damaged . | . . Bothacking | -11 -10 ------------ Run | Jun Mat Used RIF Installer . | . . Robots Hacked . | . . Non-combat . | . . Combat . | . . Robot Hacks Applied . | . . Relay Couplers Released . | . . Fabnet Peak Effective % . | . . Robots Rewired . | . . Allies Hacked . | . . Hacks Repelled . | . . Allies | -11 -10 -------- Run | Jun Mat Total Allies . | . . Largest Group . | . . Highest-Rated Group . | . . Highest-Rated Ally . | . . Total Orders . | . . Ally Attacks . | . . Total Damage . | . . Kills . | . . Allies Corrupted . | . . Allies Melted . | . . Intel | -11 -10 ------- Run | Jun Mat Robot Analysis Total 1 | . 1 Derelict Logs Recovered . | . . Drone Launches . | . . Drone Recoveries . | . . Exploration | -11 -10 ------------- Run | Jun Mat Turns Passed 463 | 93 370 Spaces Moved 277 | 66 211 Core 4 | 4 . Treads . | . . Legs . | . . Wheels 273 | 62 211 Hover . | . . Flight . | . . Fastest Speed 50 | 50 90 Average Speed 91 | 89 91 Slowest Speed 100 | 100 95 Overloaded Moves . | . . Propulsion Burnouts . | . . Robots Hopped . | . . Cave-ins Triggered . | . . Exploration Rate (%) 25 | 4 47 Regions Visited 1 Branch Regions . Pre-discovered Areas 2 | . 2 Known Exits Taken . | . . Unknown Exits Taken 1 | 1 . Scrap Searched . | . . Spaces Dug . | . . Terrain Destroyed . | . . Melee . | . . Projectile . | . . AOE . | . . Terrain Rammed . | . . Walls Destroyed . | . . Machines Disabled . | . . Actions | -11 -10 --------- Run | Jun Mat Total 374 | 86 288 Wait 17 | 5 12 Move 276 | 65 211 Hop . | . . Pick Up 8 | 3 5 Fast Attach 7 | 7 . Attach 2 | . 2 Detach . | . . Swap 4 | 1 3 Drop . | . . Fire 60 | 5 55 Melee . | . . Ram . | . . Kick . | . . Crush . | . . Escape Stasis . | . . Rewire . | . . Trap . | . . Miscellaneous . | . . Route ------- -11/Junkyard -10/Materials (discovered 3 exits: [*Mat] / *Min x2) History --------- Turn | Location | Event 9 | -11/Junkyard | Discovered new exit (range 15) 94 | -11/Junkyard | Entered Materials 225 | -10/Materials | Discovered new exit (range 15) 237 | -10/Materials | Identified exit to Mines 312 | -10/Materials | Build established: Mutant 391 | -10/Materials | Core integrity fell below 50% 444 | -10/Materials | Core integrity fell below 20% 464 | -10/Materials | Destroyed by G-47 Trooper with Particle Gun Last Messages --------------- 00366_ G-34 Mercenary destroyed. 00393_ Switching to secondary target: G-34 Mercenary. 00394_ Acquired 25 matter. 00395_ G-34 Mercenary suffers critical hit (Burn). 00396_ Acquired 1 matter. 00404_ G-34 Mercenary destroyed. 00405_ Acquired 1 matter. 00418_ G-34 Mercenary destroyed. 00419_ Acquired 1 matter. 00429_ G-34 Mercenary destroyed. 00430_ Acquired 1 matter. 00436_ Acquired Signal Interpreter. 00439_ Acquired Sensor Array. 00441_ Acquired Hover Unit. 00447_ Med. Laser destroyed. 00451_ Ion Engine destroyed. 00454_ G-34 Mercenary destroyed. 00454_ Switching to secondary target: G-47 Trooper. 00455_ Acquired 18 matter. 00457_ Acquired 1 matter. Map ----- +----------------------------------------------------+ | | | | | | | ???????????????????????????????????????????????? | | ???????????????????????????????????????????????? | | ????????????????????????????????#########??????? | | ????????????????????????????????#"""#"""#??????? | | ??????????????????###############"Y"#"T"######## | | ?????????????????? | | ?????????????????? | | ?????????????????? | | ??????????????????? ####### "" #### | | ?????????????????????????##### """ "" #??? | | ????????????????????????? ?# """ T" #??? | | ????????????????????????? ?# """ "" #### | | ????????????????????????# ! # "" | | ????????????????????????#| # | | ????????????????????????# # | | ???????????????########## + #### ##### | | ???????????????# |||# # #??# #???? | | ???????????????# |||# # """ #??#+#???? | | ???????????????# |||#+#### """ #????????? | | ???????????????# !!%#%%[ """ #????????? | | ???????????????# ==*+%[% #????????? | | ???????????????# *g!#=% +????????? | | ???????????????# %@### ###"T"# #????????? | | ???????????????# !*#?# #?#"""# #????????? | | ???????????????# #?# #?##### #????????? | | ???????????????##########?# #??????? #????????? | | ??????????????????????????#+#?????????#????????? | | ???????????????????????????????????????????????? | | ???????????????????????????????????????????????? | | ???????????????????????????????????????????????? | | ???????????????????????????????????????????????? | | ???????????????????????????????????????????????? | | ???????????????????????????????????????????????? | | ???????????????????????????????????????????????? | | ???????????????????????????????????????????????? | | ???????????????????????????????????????????????? | | ???????????????????????????????????????????????? | | ????????????????????????????????????>??????????? | | ???????????????????????????????????????????????? | | ???????????????????????????????????????????????? | | ???????????????????????????????????????????????? | | ???????????????????????????????????????????????? | | ?????????????????????????????????????????#### ## | | ???????????????????????????????????????? | | ???????????????????????????????????????? | | ???????????????????????????????????????? | | ?????????????????????????????????????????""" "" | +----------------------------------------------------+ Best States ------------- Heat Dissipation 35 Energy Generation 10 Energy Capacity 250 Matter Stores 300 Matter Capacity 300 Sight Range 16 Terrain Scan Density 10 Resistance: KI 20 Resistance: TH 20 Resistance: EX 20 Resistance: EM 20 Resistance: I 20 Resistance: S 20 Resistance: P 20 Evasion (%) 42 Offensive Hacking 10 Item Schematics ----------------- None Robot Schematics ------------------ None Fabricated ------------ Nothing Alien Tech Used ----------------- None Achievements -------------- None Challenges ------------ None Game ------ Seed FusionNodeArray Manual? 0 Play Time 00:09:26 Cumulative 152.1 hours Start 2023.04.25 @ 14:27:22 End 2023.04.25 @ 14:36:50 Sessions 1 Manual Loads 0 Difficulty Adventurer Special Mode None Game No. 41 Rogue 0 Adventurer 41 Explorer 0 Win Type - Total 1 Types 1/0/0/0/0/0/0/0/0 Lore% 61 Gallery% 67 Achievement% 55 Wizard Run 0 Options --------- ASCII 0 Keyboard 0 Movement Mouse Keybinds 0 Fullscreen 1 Font 14/SmallcapsGlow Map View 72x54 Tactical HUD 1 Map Filters NONE Filters NONE Steam 1 RUN: 60918063-767a-483b-9fb6-5ed23a64e931